bitfinex-derivatives/quotes_ETHF0:USTF0_20250106
["timestamp","ask_amount","ask_price","bid_price","bid_amount"]
[1736181746549,3.2078,3725.3,3724.8,0.26843]
[1736181746550,0.26844,3724.9,3724.8,0.26843]
[1736181746753,0.26844,3724.9,3724.7,0.26844]
[1736181746754,0.26845,3724.8,3724.7,0.26844]
[1736181746960,1.75015,3724.8,3724.7,0.26844]
[1736181747263,2.45525,3724.8,3724.7,0.26844]
[1736181747457,0.26846,3724.7,3724.6,0.26846]
[1736181747660,2.1868,3724.8,3724.3,2.10496615]
[1736181747958,2.1868,3724.8,3724.5,0.26846]
[1736181747959,0.26847,3724.6,3724.5,0.26846]
[1736181749262,3.41824639,3724.6,3724.5,0.26847]
[1736181750353,0.26846,3724.6,3724.5,0.26847]
[1736181750552,4.20153042,3724.7,3724.1,40.8]
[1736181750752,3.2078,3724.4,3724.1,40.8]
[1736181750951,0.26848,3724.3,3724.2,0.26848]
[1736181751153,0.26849,3724.2,3724.1,40.8]
[1736181751457,0.26849,3724.2,3724.1,41.0685]
[1736181751656,3.2078,3724.4,3724.2,0.26848]
[1736181751657,3.41785948,3724.3,3724.2,0.26848]
[1736181751968,0.26849,3724.2,3724.1,41.06849]
[1736181752160,3.41785948,3724.3,3724.2,0.26849]
[1736181752456,5.25433563,3724.3,3723.1,3.2078]
[1736181752663,3.47632,3723.8,3723.7,0.26852]
[1736181753259,3.2078,3723.8,3722.0,3.2078]
[1736181753562,3.2078,3723.8,3721.5,8.375564]
[1736181753563,3.47635,3723.4,3722.7,0.6715]
[1736181753769,3.2078,3723.4,3722.6,2.10496615]
[1736181753957,3.2078,3723.4,3723.3,0.26855]
[1736181756365,0.26855,3723.3,3723.2,0.26855]
[1736181756566,0.7644,3723.3,3723.2,0.26855]
[1736181756765,1.03295,3723.3,3723.2,0.26855]
[1736181756968,0.7644,3723.3,3723.2,0.26855]
[1736181757663,1.4658,3723.3,3723.2,0.26855]
[1736181758467,1.4658,3723.3,3723.2,41.06855]
[1736181759462,1.4658,3723.3,3723.2,0.26855]
[1736181759865,1.4658,3723.3,3722.6,2.10496615]
[1736181760164,0.26856,3723.1,3723.0,0.26856]
[1736181760679,1.4658,3723.3,3723.2,0.26855]
[1736181760869,1.4658,3723.3,3722.7,40.8]
[1736181761169,0.26857,3723.1,3723.0,0.26856]
[1736181761367,0.26857,3723.1,3723.0,0.26857]
[1736181761872,0.26858,3723.0,3722.8,0.26859]
[1736181762073,0.7331,3722.9,3722.8,0.26859]
[1736181762278,1.00168,3722.9,3722.8,0.26859]
[1736181762575,1.00168,3722.9,3722.5,0.26861]
[1736181762576,0.26861,3722.6,3722.5,0.26861]
[1736181763174,0.7331,3722.9,3722.1,40.8]
[1736181763374,0.26863,3722.3,3722.1,41.06864]
[1736181763591,0.7668,3722.2,3722.1,41.06864]
[1736181764501,0.26865,3722.0,3721.9,0.26865]
[1736181764897,0.26865,3722.0,3721.9,40.8]
[1736181765086,0.26865,3722.0,3721.9,41.06865]
[1736181765298,0.26865,3722.0,3721.3,0.67173]
[1736181765299,0.7278,3722.1,3720.8,3.2078]
[1736181765613,0.7278,3722.1,3722.0,0.26865]
[1736181765897,0.7278,3722.1,3722.0,2.37361615]
[1736181766089,3.912426,3722.5,3722.4,0.26862]
[1736181766377,2.541086,3722.5,3722.4,44.27642]
[1736181766673,3.75153514,3722.8,3722.4,49.0078]
[1736181766873,2.39291514,3722.8,3722.7,2.37355615]
[1736181767074,1.94391514,3722.8,3722.7,2.37355615]
[1736181767270,1.40154514,3722.8,3722.7,7.37355615]
[1736181767475,4.3e-06,3722.8,3722.7,48.17355615]
[1736181767680,4.3e-06,3722.8,3722.7,49.35055615]
[1736181767980,0.7052,3723.6,3723.5,0.26854]
[1736181768575,0.7052,3723.6,3723.5,43.17350615]
[1736181770983,0.7247,3723.9,3723.8,0.26852]
[1736181772978,0.6766,3724.1,3723.8,2.10496615]
[1736181773285,0.26851,3723.9,3723.8,0.26851]
[1736181773471,0.7124,3724.0,3723.5,40.8]
[1736181773678,0.26851,3723.9,3723.8,0.26851]
[1736181773977,0.26852,3723.8,3723.7,0.26852]
[1736181774196,0.7124,3724.0,3723.3,2.10496615]
[1736181774379,0.26853,3723.7,3723.6,0.26853]
[1736181774572,0.26852,3723.8,3723.7,0.26852]
[1736181775380,0.26853,3723.7,3723.6,0.26852]
[1736181775580,3.2078,3723.8,3723.2,3.2078]
[1736181775883,0.97423,3723.7,3723.6,0.26853]
[1736181776293,0.26853,3723.6,3723.5,0.26853]
[1736181776474,0.26853,3723.6,3723.2,3.2078]
[1736181776475,0.7057,3723.7,3723.2,3.2078]
[1736181776683,0.97422,3723.7,3723.6,0.26853]
[1736181776986,0.7057,3723.7,3723.1,2.10496615]
[1736181777188,0.26853,3723.6,3723.5,0.26853]
[1736181777580,0.26854,3723.5,3723.4,0.26854]
[1736181777783,0.26853,3723.6,3723.5,0.26853]
[1736181778677,0.26853,3723.6,3723.1,2.10496615]
[1736181778983,3.2078,3723.4,3723.3,0.26855]
[1736181779411,3.47634,3723.4,3723.3,0.26855]
[1736181779986,3.2078,3723.4,3723.0,40.8]
[1736181780186,0.26859,3722.7,3722.6,0.2686]
[1736181780385,0.26862,3722.4,3722.2,0.26863]
[1736181780587,0.26862,3722.4,3721.9,2.10496615]
[1736181780588,0.696,3722.6,3721.9,2.77660615]
[1736181780890,0.696,3722.6,3721.9,2.10496615]
[1736181781198,3.47643,3722.3,3722.2,0.26863]
[1736181781387,3.2078,3722.3,3722.2,0.26863]
[1736181781987,3.2078,3722.3,3721.9,2.10496615]
[1736181782185,0.26864,3722.2,3722.1,0.26863]
[1736181782588,0.26864,3722.2,3721.9,2.10496615]
[1736181782589,3.47643,3722.3,3722.2,0.26863]
[1736181783089,0.696,3722.6,3722.2,2.10496615]
[1736181783389,0.696,3722.6,3721.8,3.2078]
[1736181783586,0.696,3722.6,3721.9,2.10496615]
[1736181783793,0.696,3722.6,3722.5,0.26861]
[1736181784291,0.696,3722.6,3722.2,2.10496615]
[1736181784489,0.26862,3722.4,3722.3,0.26862]
[1736181784787,0.26861,3722.5,3722.4,0.26861]
[1736181784980,0.96461,3722.6,3722.5,0.26861]
[1736181785186,0.26862,3722.5,3722.4,0.26861]
[1736181785387,0.696,3722.6,3722.2,2.10496615]
[1736181785893,0.26861,3722.5,3722.4,0.26861]
[1736181786389,0.26861,3722.5,3722.4,40.8]
[1736181786790,0.26861,3722.5,3722.4,41.06861]
[1736181787494,0.26861,3722.5,3722.4,40.8]
[1736181787691,0.26861,3722.5,3722.4,41.06861]
[1736181788189,0.696,3722.6,3722.5,0.26861]
[1736181788392,0.696,3722.6,3722.5,2.37357615]
[1736181789392,0.696,3722.6,3722.5,43.17357615]
[1736181790287,0.9646,3722.6,3722.5,40.8]
[1736181790493,1.6727138,3722.6,3722.5,40.8]
[1736181790686,1.6727138,3722.6,3722.2,2.10496615]
[1736181790687,0.26861,3722.5,3722.4,0.26861]
[1736181791198,0.26861,3722.5,3722.4,41.06861]
[1736181791391,3.2078,3722.5,3722.0,0.26863]
[1736181791595,0.26862,3722.3,3722.2,0.26861]
[1736181791993,1.6727138,3722.6,3722.0,0.6716]
[1736181792191,1.4041138,3722.6,3722.5,0.2686]
[1736181792591,1.4041138,3722.6,3722.5,2.37356615]
[1736181792899,1.4041138,3722.6,3722.5,0.2686]
[1736181795298,0.26862,3722.5,3722.4,0.26862]
[1736181795699,1.4041138,3722.6,3722.0,0.6716]
[1736181795911,1.6727238,3722.6,3722.5,0.26861]
[1736181796398,1.4041138,3722.6,3722.5,0.26861]
[1736181797033,2.0960138,3722.6,3722.5,0.26861]
[1736181799908,2.0960138,3722.6,3721.9,3.2078]
[1736181799909,9.20097995,3722.6,3721.9,3.2078]
[1736181800204,3.2078,3722.0,3721.2,4.187782]
[1736181800405,0.26867,3721.7,3721.6,0.26867]
[1736181800608,0.26868,3721.6,3721.5,0.26868]
[1736181801105,0.26867,3721.6,3721.5,0.26868]
[1736181801302,1.3501,3721.9,3721.2,4.187782]
[1736181801602,0.26868,3721.6,3721.5,0.26868]
[1736181802405,0.26872,3721.0,3720.9,0.26872]
[1736181802605,0.26873,3720.9,3720.8,0.26873]
[1736181802799,0.7228,3720.9,3720.2,2.10496615]
[1736181803105,1.3166,3720.8,3720.2,2.10496615]
[1736181803403,0.26875,3720.6,3720.5,0.26875]
[1736181803599,1.3166,3720.8,3720.7,0.26874]
[1736181804005,5.52744534,3720.8,3720.7,0.26874]
[1736181804299,0.26876,3720.5,3720.4,0.26876]
[1736181804500,5.52744534,3720.8,3720.1,42.90496615]
[1736181804903,0.26876,3720.5,3720.4,0.26875]
[1736181805318,1.3166,3720.8,3720.1,42.90496615]
[1736181805510,0.26875,3720.6,3720.5,0.26874]
[1736181805809,0.26874,3720.7,3720.6,0.26874]
[1736181806010,1.3166,3720.8,3720.1,42.90496615]
[1736181806202,1.3166,3720.8,3719.8,0.2688]
[1736181806203,5.58153615,3720.2,3719.8,0.2688]
[1736181806406,5.58153615,3720.2,3718.9,5.31276615]
[1736181806407,5.31276615,3720.2,3718.9,5.31276615]
[1736181806709,3.2078,3720.2,3719.2,2.10496615]
[1736181806903,0.7007,3720.1,3720.0,0.26879]
[1736181807907,0.7007,3720.1,3720.0,41.06879]
[1736181808907,0.7007,3720.1,3720.0,0.26879]
[1736181809110,0.96948,3720.1,3720.0,0.26879]
[1736181809409,1.69318,3720.1,3720.0,41.06879]
[1736181809603,1.4244,3720.1,3720.0,0.26879]
[1736181809807,1.4244,3720.1,3719.0,1.84915]
[1736181809808,1.4244,3720.1,3719.1,3.2078]
[1736181810007,0.2688,3719.9,3719.8,0.2688]
[1736181810303,0.98749,3720.0,3719.3,40.8]
[1736181810511,0.2688,3719.9,3719.3,40.8]
[1736181810702,0.26879,3719.9,3719.7,0.2688]
[1736181810918,0.7187,3720.0,3719.3,40.8]
[1736181811114,3.2078,3719.7,3719.3,40.8]
[1736181811313,3.47661,3719.7,3719.6,0.26882]
[1736181811611,0.7187,3720.0,3719.6,0.26882]
[1736181811918,0.7187,3720.0,3719.3,42.90496615]
[1736181812107,0.2688,3719.9,3719.3,42.90496615]
[1736181812416,0.7187,3720.0,3719.3,40.8]
[1736181812611,0.26882,3719.6,3719.4,0.26883]
[1736181812913,0.7187,3720.0,3719.3,40.8]
[1736181813110,0.26881,3719.7,3719.6,0.26882]
[1736181813316,0.7187,3720.0,3719.3,40.8]
[1736181813647,0.26882,3719.6,3719.3,40.8]
[1736181813917,0.26884,3719.4,3719.3,40.8]
[1736181814309,0.26888,3718.9,3718.5,0.2689]
[1736181814615,0.67209,3719.5,3718.7,0.26889]
[1736181814616,0.6807,3718.8,3718.7,0.26889]
[1736181815515,0.6807,3718.8,3718.2,3.2078]
[1736181815712,0.26892,3718.4,3718.3,0.26891]
[1736181816016,0.26891,3718.4,3718.3,0.26891]
[1736181816219,0.7013,3718.5,3717.7,3.2078]
[1736181816514,0.26891,3718.4,3718.2,0.26892]
[1736181816728,0.26891,3718.4,3717.8,40.8]
[1736181817015,0.26895,3717.9,3717.8,41.06895]
[1736181817217,0.26895,3717.9,3717.2,0.67249]
[1736181817218,3.2078,3718.2,3717.2,2.10496615]
[1736181817420,0.6696,3717.8,3717.7,0.26896]
[1736181817812,3.2078,3718.9,3717.9,1.34475]
[1736181818120,3.2078,3718.9,3717.7,49.0078]
[1736181818121,3.2078,3718.9,3718.8,0.26888]
[1736181818330,0.26888,3718.9,3718.8,0.26888]
[1736181818513,5.31276615,3719.0,3717.7,2.10496615]
[1736181818826,0.6854,3718.8,3718.7,0.26889]
[1736181820215,0.26894,3718.0,3717.3,3.2078]
[1736181820414,3.2078,3718.2,3717.8,40.8]
[1736181820615,1.3307,3717.9,3717.8,40.8]
[1736181820809,1.3307,3717.9,3717.8,41.06895]
[1736181822215,1.3307,3717.9,3717.8,40.8]
[1736181822523,1.3307,3717.9,3717.8,0.26895]
[1736181822724,0.26896,3717.8,3717.2,2.77746615]
[1736181823019,1.3307,3717.9,3717.3,40.8]
[1736181823318,1.3307,3717.9,3717.6,0.26896]
[1736181823319,3.47677,3717.7,3717.6,0.26896]
[1736181823914,3.47677,3717.7,3717.3,40.8]
[1736181823915,3.2078,3717.7,3717.3,40.8]
[1736181824824,0.26898,3717.4,3717.3,41.06899]
[1736181825043,0.26898,3717.4,3716.7,3.88039]
[1736181825044,0.94147,3717.3,3716.7,0.26903]
[1736181825221,0.67255,3716.9,3715.5,0.21837816]
[1736181825521,3.2078,3716.5,3715.7,5.31276615]
[1736181825833,3.47685,3716.5,3715.8,0.2691]
[1736181826015,3.2078,3716.5,3715.4,2.10496615]
[1736181826224,3.2078,3716.5,3715.5,40.8]
[1736181826520,3.2078,3716.5,3716.3,0.26906]
[1736181826715,3.2078,3716.5,3716.4,0.26905]
[1736181827824,1.3376,3716.8,3716.0,0.67271]
[1736181827825,0.6738,3716.8,3716.7,0.26903]
[1736181828221,3.2078,3717.0,3716.5,2.10496615]
[1736181828420,2.10496615,3717.6,3716.9,0.26902]
[1736181828421,4.6127,3717.5,3716.9,0.26902]
[1736181828619,4.6127,3717.5,3716.8,40.8]
[1736181828818,0.26899,3717.4,3716.8,40.8]
[1736181829018,4.88168,3717.5,3717.3,0.26899]
[1736181829227,4.6127,3717.5,3716.8,40.8]
[1736181829425,3.2078,3717.1,3717.0,0.269]
[1736181829825,1.4049,3717.5,3717.4,0.26898]
[1736181830129,0.7017,3717.5,3717.4,0.26898]
[1736181830430,0.7017,3717.5,3717.4,41.06898]
[1736181830823,0.702,3717.9,3717.8,0.26895]
[1736181832425,0.97095,3717.9,3717.8,0.26895]
[1736181832626,0.702,3717.9,3717.8,0.26895]
[1736181833226,3.9013,3718.4,3717.4,40.8]
[1736181833434,3.9013,3718.4,3718.3,0.26892]
[1736181833627,0.6997,3718.5,3718.4,0.26891]
[1736181833834,0.7017,3718.6,3718.5,0.2689]
[1736181834032,2.64119702,3720.0,3718.5,0.2689]
[1736181834033,3.2078,3719.3,3718.7,0.26889]
[1736181834235,3.2078,3719.3,3719.2,0.26885]
[1736181834633,0.6997,3719.5,3719.0,0.67216]
[1736181834834,0.6997,3719.5,3719.4,0.26884]
[1736181836434,0.6997,3719.5,3719.4,41.06884]
[1736181837041,0.6993,3719.9,3719.8,0.26881]
[1736181838841,3.2078,3720.1,3719.4,41.06884]
[1736181839137,3.2078,3720.1,3720.0,0.26879]
[1736181841044,0.692,3720.3,3720.2,0.26878]
[1736181841832,0.692,3720.3,3719.3,6.52110702]
[1736181842042,0.692,3720.3,3720.2,0.26878]
[1736181843647,0.692,3720.3,3719.0,0.67217]
[1736181843648,5.692,3720.3,3719.0,0.67217]
[1736181843837,0.26881,3719.8,3719.0,0.67217]
[1736181844041,0.7208,3719.7,3719.6,0.26882]
[1736181846046,0.98962,3719.7,3719.6,0.26882]
[1736181846240,0.26883,3719.6,3719.4,0.26883]
[1736181846445,0.97613,3719.6,3719.0,40.8]
[1736181846648,0.97613,3719.6,3719.5,0.26883]
[1736181846836,0.97613,3719.6,3719.0,40.8]
[1736181847150,0.7073,3719.6,3719.5,0.26883]
[1736181848360,0.97612,3719.6,3719.5,0.26883]
[1736181848648,0.7073,3719.6,3719.1,0.26885]
[1736181848952,3.2078,3719.2,3719.1,0.26885]
[1736181849351,3.8912,3719.2,3718.6,40.8]
[1736181849540,3.47669,3718.7,3717.8,3.31356702]
[1736181849746,0.26892,3718.3,3718.2,0.26892]
[1736181849940,0.7052,3718.6,3718.5,0.2689]
[1736181851553,0.7052,3718.6,3718.1,2.11567527]
[1736181852243,0.26891,3718.5,3718.4,0.26891]
[1736181852448,0.26892,3718.3,3718.2,0.26892]
[1736181852661,0.7052,3718.6,3717.6,3.2078]
[1736181852949,3.2078,3717.9,3717.5,0.26897]
[1736181853151,1.4213,3717.8,3717.3,2.11567527]
[1736181853354,1.4213,3717.8,3717.0,5.32347527]
[1736181853556,0.26898,3717.4,3717.0,2.11567527]
[1736181853749,3.2078,3717.5,3716.7,2.11567527]
[1736181853952,3.2078,3717.5,3717.4,0.26898]
[1736181854448,3.2078,3717.5,3716.9,2.11567527]
[1736181855056,3.2078,3717.1,3716.6,3.2078]
[1736181855258,3.2078,3717.1,3716.1,0.67269]
[1736181855259,0.26903,3716.9,3716.7,0.26903]
[1736181855553,0.26903,3716.8,3716.1,4.48944242]
[1736181855866,0.26903,3716.8,3716.7,0.26903]
[1736181856058,0.26902,3716.9,3716.8,0.26903]
[1736181856259,0.26902,3716.9,3715.9,0.67274]
[1736181856260,0.26908,3716.1,3715.9,0.26909]
[1736181856458,0.6709,3716.8,3715.7,2.64075242]
[1736181856650,3.47687,3716.2,3716.0,0.26908]
[1736181856855,3.47687,3716.2,3716.1,41.06908]
[1736181857052,3.47687,3716.2,3716.1,40.8]
[1736181858861,3.47687,3716.2,3715.3,2.64075242]
[1736181858862,0.2691,3715.9,3715.3,2.64075242]
[1736181859060,3.2078,3716.2,3715.3,2.64075242]
[1736181859260,3.2078,3715.8,3715.4,40.8]
[1736181859453,0.6987,3715.7,3715.4,40.8]
[1736181859653,0.6987,3715.7,3715.6,0.26911]
[1736181860056,3.2078,3716.2,3715.3,2.64075242]
[1736181860562,3.2078,3716.2,3715.8,0.26909]
[1736181860563,0.26909,3716.0,3715.8,0.26909]
[1736181860764,3.2078,3716.2,3715.3,2.64075242]
[1736181861162,0.2691,3715.8,3715.6,0.26911]
[1736181861358,0.26909,3716.0,3715.6,0.26911]
[1736181861575,0.2691,3715.8,3715.6,0.26911]
[1736181861754,0.26911,3715.7,3715.4,0.26913]
[1736181861960,0.26911,3715.7,3715.3,2.64075242]
[1736181861961,0.6918,3716.1,3715.3,2.64075242]
[1736181862364,0.6918,3716.1,3715.4,0.26912]
[1736181862567,0.26911,3715.7,3715.5,0.26912]
[1736181862766,0.26911,3715.7,3715.0,3.2078]
[1736181862955,3.2078,3715.8,3715.7,0.26911]
[1736181863162,3.47691,3715.8,3715.4,0.26913]
[1736181863465,3.47691,3715.8,3715.3,2.64075242]
[1736181863466,0.26911,3715.7,3715.5,0.26912]
[1736181863663,3.2078,3715.8,3715.0,3.2078]
[1736181864065,0.6918,3716.1,3714.9,0.26916]
[1736181864066,0.26916,3715.1,3714.9,0.26916]
[1736181864260,3.47694,3715.3,3715.1,0.26915]
[1736181864469,3.2078,3715.3,3714.6,3.2078]
[1736181864767,0.26911,3715.6,3714.9,2.64075242]
[1736181865064,3.2078,3715.7,3715.6,0.26911]
[1736181865264,0.26911,3715.6,3715.5,0.26912]
[1736181865462,3.47691,3715.7,3715.5,0.26912]
[1736181865664,3.2078,3715.7,3714.9,2.64075242]
[1736181865865,0.26911,3715.6,3715.4,0.26912]
[1736181866064,0.26913,3715.5,3715.4,0.26913]
[1736181866572,0.26455229,3715.5,3715.4,40.8]
[1736181866772,0.26455229,3715.5,3715.4,41.06913]
[1736181866972,0.26916,3715.0,3714.8,0.26917]
[1736181867273,0.26914,3715.3,3715.1,0.26915]
[1736181867472,3.8557,3715.6,3714.5,2.64075242]
[1736181867659,3.8557,3715.6,3715.5,0.26912]
[1736181868171,3.2078,3715.6,3715.5,41.06912]
[1736181869167,3.2078,3716.0,3715.5,40.8]
[1736181869370,3.2078,3716.0,3715.9,0.26909]
[1736181869568,0.2691,3715.9,3715.8,0.2691]
[1736181870076,3.2078,3716.0,3715.7,0.26911]
[1736181870077,0.26911,3715.8,3715.7,0.26911]
[1736181870374,3.2078,3716.0,3715.5,41.06912]
[1736181870375,0.26912,3715.6,3715.5,41.06912]
[1736181870582,3.47692,3715.6,3715.5,41.06912]
[1736181871072,3.47692,3715.6,3715.5,40.8]
[1736181871373,0.26914,3715.3,3715.2,0.26914]
[1736181872372,0.7017,3715.4,3714.8,40.8]
[1736181872679,0.7017,3715.4,3715.3,0.26914]
[1736181872877,0.6565,3715.5,3714.9,3.88073]
[1736181873077,3.2078,3715.6,3715.5,0.26912]
[1736181874572,3.47692,3715.6,3715.5,0.26912]
[1736181875177,3.2078,3715.6,3714.9,3.2078]
[1736181875468,3.2078,3715.6,3714.8,0.67294]
[1736181875469,3.2078,3715.6,3715.0,0.67291]
[1736181875677,3.2078,3715.6,3715.2,2.11933224]
[1736181875875,3.2078,3715.6,3715.5,0.26912]
[1736181876276,3.47692,3715.6,3715.5,0.26912]
[1736181876465,3.2078,3715.6,3715.5,41.06912]
[1736181877272,3.2078,3715.6,3715.5,43.18845224]
[1736181877467,3.2078,3715.6,3715.5,41.06912]
[1736181878472,3.2078,3715.6,3715.5,43.18845224]
[1736181878672,0.714,3716.0,3715.5,43.18845224]
[1736181878673,0.714,3716.0,3715.9,0.2691]
[1736181878878,3.2078,3716.2,3716.1,0.26908]
[1736181879177,3.2078,3716.6,3716.5,0.26905]
[1736181879673,3.2078,3716.6,3713.8,2.69]
[1736181879879,3.2078,3716.6,3716.4,0.26906]
[1736181879880,0.6765,3716.5,3716.4,0.26906]
[1736181881176,3.2078,3716.6,3716.5,0.26905]
[1736181881487,0.6484,3717.3,3717.2,0.269]
[1736181881978,0.6484,3717.3,3716.3,3.2078]
[1736181882170,5.32713224,3717.1,3716.3,3.2078]
[1736181882480,5.32713224,3717.1,3715.9,2.11933224]
[1736181882481,0.26903,3716.9,3716.6,0.26904]
[1736181882779,5.32713224,3717.1,3716.6,0.26904]
[1736181882780,3.2078,3717.1,3716.6,0.26904]
[1736181883282,3.2078,3716.7,3716.0,40.8]
[1736181883479,1.2989,3716.6,3716.0,40.8]
[1736181884177,3.2078,3716.4,3716.3,0.26906]
[1736181884406,3.2078,3716.4,3715.4,4.4358]
[1736181884407,3.2078,3716.4,3715.4,3.2078]
[1736181884572,3.2078,3715.9,3715.8,0.2691]
[1736181886080,3.2078,3716.3,3715.4,3.2078]
[1736181886580,3.2078,3716.3,3715.5,40.8]
[1736181886787,0.26908,3716.2,3715.5,40.8]
[1736181887086,0.26908,3716.2,3715.9,0.26909]
[1736181887276,0.26909,3716.1,3715.5,40.8]
[1736181887524,3.2078,3715.9,3715.5,40.8]
[1736181887678,5.32713224,3715.9,3715.5,40.8]
[1736181887883,0.26914,3715.4,3714.6,2.33352236]
[1736181888084,4.5447,3715.3,3714.7,0.26918]
[1736181888283,5.2345,3715.3,3715.1,0.26915]
[1736181888578,5.2345,3715.3,3715.2,0.26915]
[1736181888780,4.5447,3715.3,3715.2,0.26915]
[1736181889178,0.6744,3715.3,3715.2,2.38848224]
[1736181889481,0.6744,3715.3,3715.2,0.26915]
[1736181889681,4.15134,3715.3,3714.9,0.26917]
[1736181889884,0.6625,3715.2,3714.4,3.2078]
[1736181890388,0.26919,3714.6,3714.5,40.8]
[1736181890608,3.47699,3714.7,3714.5,40.8]
[1736181890786,3.2078,3714.7,3714.6,0.26919]
[1736181890987,3.47699,3714.7,3714.5,0.26919]
[1736181891188,3.2078,3714.7,3713.6,2.11933224]
[1736181891484,3.2078,3714.3,3713.8,2.11933224]
[1736181891687,1.3857,3715.1,3714.1,0.26923]
[1736181891688,1.3395,3714.2,3714.1,0.26923]
[1736181892873,0.67307,3714.1,3712.6,0.21646431]
[1736181893189,0.26926,3713.7,3713.4,0.26927]
[1736181893388,0.26925,3713.8,3713.5,0.26927]
[1736181893575,3.47704,3714.0,3713.7,0.26925]
[1736181893781,0.663,3714.1,3713.4,2.11933224]
[1736181893984,3.2078,3714.0,3713.4,2.11933224]
[1736181894183,0.663,3714.1,3713.4,2.11933224]
[1736181894184,3.8708,3714.1,3713.4,2.11933224]
[1736181894487,3.8708,3714.1,3713.5,0.26926]
[1736181894488,3.2078,3713.7,3713.5,0.26926]
[1736181894689,3.2078,3713.7,3713.4,2.11933224]
[1736181894690,0.26924,3713.9,3713.6,0.26926]
[1736181894980,3.8708,3714.1,3713.4,2.11933224]
[1736181895381,0.26924,3714.0,3713.7,0.26925]
[1736181895591,3.8708,3714.1,3713.4,2.11933224]
[1736181895881,0.26925,3713.8,3713.4,2.11933224]
[1736181896079,4.14003,3714.1,3713.8,0.26925]
[1736181896280,3.8708,3714.1,3713.9,40.8]
[1736181896581,0.26923,3714.0,3713.9,40.8]
[1736181896783,4.14003,3714.1,3713.9,40.8]
[1736181896982,3.8708,3714.1,3713.9,41.06924]
[1736181897188,3.2078,3714.1,3714.0,0.26923]
[1736181898488,3.2078,3714.1,3713.9,40.8]
[1736181898984,3.47703,3714.1,3713.9,41.06923]
[1736181899184,3.2078,3714.1,3714.0,0.26923]
[1736181899382,3.2078,3714.1,3713.9,40.8]
[1736181899583,3.2078,3714.1,3714.0,0.26923]
[1736181900184,1.3395,3714.2,3713.9,42.91933224]
[1736181900389,1.3395,3714.2,3714.1,0.26923]
[1736181900390,0.6417,3714.2,3714.1,0.26923]
[1736181900689,6.33833454,3714.5,3714.4,0.2692]
[1736181900896,6.33833454,3714.5,3714.4,2.38853224]
[1736181901092,3.13053454,3714.5,3714.4,2.38853224]
[1736181901488,3.13053454,3714.5,3714.4,43.18853224]
[1736181901689,3.13053454,3714.5,3714.4,41.0692]
[1736181901889,6.33833454,3715.2,3714.4,40.8]
[1736181902083,6.33833454,3715.2,3715.1,0.26915]
[1736181902289,6.33833454,3715.2,3714.4,40.8]
[1736181902491,3.2078,3714.8,3714.4,40.8]
[1736181902788,0.6657,3714.7,3714.4,40.8]
[1736181902996,1.3849,3714.7,3714.4,0.2692]
[1736181903188,1.3849,3714.7,3713.9,0.67311]
[1736181903487,1.65408,3714.7,3714.5,0.26919]
[1736181903685,1.65408,3714.7,3714.6,0.26919]
[1736181903894,1.65408,3714.7,3714.0,40.8]
[1736181903895,1.3849,3714.7,3714.0,40.8]
[1736181904100,3.2078,3714.4,3714.3,0.26921]
[1736181904392,3.477,3714.4,3714.0,40.8]
[1736181904698,0.6809,3714.3,3714.2,0.26921]
[1736181907699,0.6809,3714.3,3714.0,40.8]
[1736181907700,3.79623454,3714.7,3714.1,0.67306]
[1736181907896,3.79623454,3714.7,3714.6,0.26919]
[1736181908292,3.79623454,3714.7,3714.1,2.79239224]
[1736181908505,4.45613454,3714.7,3714.6,0.26919]
[1736181908711,3.79623454,3714.7,3714.6,0.26919]
[1736181909208,3.13053454,3714.8,3714.7,0.26918]
[1736181910609,0.6753,3715.0,3714.9,0.26917]
[1736181910820,0.94446,3715.0,3714.9,0.26917]
[1736181911114,0.6753,3715.0,3714.0,40.8]
[1736181911303,0.26918,3714.7,3714.4,0.2692]
[1736181911615,0.26919,3714.7,3714.6,0.26919]
[1736181911812,6.60751454,3714.8,3714.7,0.26918]
[1736181912111,6.33833454,3714.8,3714.7,0.26918]
[1736181912514,7.41864534,3714.8,3714.7,0.26918]
[1736181913416,7.41864534,3714.8,3714.2,0.67305]
[1736181913741,7.41864534,3714.8,3713.8,3.2078]
[1736181913742,0.26919,3714.7,3714.6,0.26918]
[1736181913910,3.2078,3714.8,3714.0,41.47309]
[1736181914109,0.26919,3714.6,3714.5,0.26919]
[1736181914515,0.2692,3714.5,3714.4,0.2692]
[1736181914911,0.26921,3714.4,3714.3,0.26921]
[1736181915110,3.47701,3714.4,3714.3,0.26921]
[1736181915311,0.26926,3713.7,3713.3,3.2078]
[1736181915613,0.26925,3713.9,3713.8,0.26924]
[1736181915817,3.2078,3714.0,3713.9,0.26924]
[1736181915818,3.47704,3714.0,3713.9,0.26924]
[1736181916215,3.2078,3714.0,3713.4,40.8]
[1736181916418,0.6633,3713.9,3713.8,0.26924]
[1736181916621,1.3591,3713.9,3713.8,0.26924]
[1736181916920,1.62834,3713.9,3713.8,0.26924]
[1736181917111,0.26926,3713.7,3713.4,40.8]
[1736181917317,1.3591,3713.9,3713.8,0.26925]
[1736181918317,0.6958,3713.9,3713.8,0.26925]
[1736181918512,6.36579647,3714.0,3713.9,0.26924]
[1736181919415,3.15799647,3714.0,3713.9,0.26924]
[1736181919614,4.21189277,3714.2,3714.1,0.26923]
[1736181919615,3.15799647,3714.2,3714.1,0.26923]
[1736181919816,3.15799647,3714.2,3714.1,41.06923]